lending/lending_fUSD_20250429
["ID","MTS","AMOUNT","RATE_DAILY","PERIOD"]
[359275296,1745887831847,-207.6729416,0.00023074,4]
[359275297,1745887831856,-587.0,0.00023712,2]
[359275298,1745887831865,-2351.0,0.00023941,2]
[359275299,1745887831874,-207.6729416,0.00024161,5]
[359275300,1745887831883,-20000.0,0.00025,14]
[359275301,1745887831892,-4302.19807887,0.0002516,2]
[359275302,1745887831901,-207.6729416,0.00025248,5]
[359275303,1745887831910,-823.0,0.0002582,2]
[359275304,1745887831920,-334.0,0.00026194,2]
[359275305,1745887831930,-207.6729416,0.00026335,6]
[359275306,1745887831939,-757.44,0.00027397,2]
[359275307,1745887831948,-207.6729416,0.00027422,7]
[359275308,1745887831958,-1152.0,0.00028115,2]
[359275309,1745887831968,-207.6729416,0.00028509,8]
[359275310,1745887831977,-638.58,0.00029149,2]
[359275311,1745887831987,-207.6729416,0.00029596,8]
[359275312,1745887831996,-150.0,0.00029949,2]
[359275313,1745887832007,-250.0,0.00030041,2]
[359275314,1745887832018,-1613.0,0.00030615,2]
[359275315,1745887832029,-207.6729416,0.00030683,9]
[359275317,1745887832038,-150.0,0.00030749,2]
[359275319,1745887832047,-6036.23491656,0.00031231,2]
[359275322,1745887832090,-18972.48660329,0.00031231,2]
[359275323,1745887832117,-17548.19982151,0.00031231,2]
[359275324,1745887832128,-3200.09805174,0.00031231,2]
[359275325,1745887832236,-2380.21952971,0.00031231,2]
[359275327,1745887837587,-410.00923886,0.00031231,2]
[359275328,1745887837599,-7380.84183833,0.00031231,2]
[359275329,1745887837608,-200.0,0.00031314,2]
[359275330,1745887837618,-532.82,0.00031314,2]
[359275331,1745887837627,-638.58,0.00031413,2]
[359275332,1745887837637,-150.0,0.00031549,2]
[359275333,1745887837647,-207.6729416,0.0003177,10]
[359275334,1745887837656,-269.83,0.00031785,2]
[359275335,1745887837665,-150.0,0.00031785,2]
[359275336,1745887837676,-250.0,0.00031934,7]
[359275337,1745887837686,-500.0,0.00031934,2]
[359275338,1745887837695,-341.62,0.00032133,2]
[359275339,1745887837705,-300.0,0.00032244,2]
[359275340,1745887837714,-1585.94,0.00032344,2]
[359275341,1745887837723,-150.0,0.00032349,2]
[359275342,1745887837733,-500.0,0.00032603,2]
[359275343,1745887837743,-207.6729416,0.00032857,10]
[359275344,1745887837752,-23900.0,0.0003302,2]
[359275345,1745887837761,-150.0,0.00033149,2]
[359275346,1745887837777,-757.44,0.00033165,2]
[359275347,1745887837786,-567.0,0.00033336,2]
[359275348,1745887837796,-200.0,0.0003351,2]
[359275349,1745887837805,-281.41,0.0003351,2]
[359275350,1745887837815,-300.0,0.00033614,2]
[359275351,1745887837824,-638.58,0.00033677,2]
[359275352,1745887837833,-341.62,0.00033739,2]
[359275353,1745887837843,-988.42,0.0003383,2]
[359275354,1745887837852,-151.0,0.00033851,2]
[359275355,1745887837861,-207.4,0.00033851,2]
[359275356,1745887837871,-207.6729416,0.00033943,11]
[359275357,1745887837880,-150.0,0.00033949,2]
[359275358,1745887837890,-591.0048165,0.00034095,4]
[359275359,1745887837899,-4000.02631666,0.00034135,2]
[359275360,1745887837909,-150.0,0.00034749,2]
[359275362,1745887837918,-800.38,0.00034941,2]
[359275364,1745887837927,-207.6729416,0.0003503,12]
[359275366,1745887837936,-269.9049,0.00035051,2]
[359275368,1745887837945,-1036.6492,0.00035051,2]
[359275370,1745887837955,-2200.39221186,0.00035119,7]
[359275371,1745887837964,-385.70683908,0.00035119,7]
[359275372,1745887837973,-2200.39221186,0.00035119,7]
[359275373,1745887837982,-2200.39221186,0.00035119,7]
[359275374,1745887837991,-645.71030963,0.00035119,7]
[359275375,1745887838000,-2200.39221186,0.00035119,7]
[359275376,1745887838010,-2200.39221186,0.00035119,7]
[359275377,1745887838018,-2200.39221186,0.00035119,7]
[359275378,1745887838028,-2200.39221186,0.00035119,7]
[359275379,1745887838037,-2200.39221186,0.00035119,7]
[359275380,1745887838045,-2200.39221186,0.00035119,7]
[359275381,1745887838054,-500.0,0.00035119,7]
[359275383,1745887838063,-2200.39221186,0.00035119,7]
[359275384,1745887838072,-2200.39221186,0.00035119,7]
[359275386,1745887838081,-2200.39221186,0.00035119,7]
[359275388,1745887838090,-2200.39221186,0.00035119,7]
[359275390,1745887838099,-2200.39221186,0.00035119,7]
[359275391,1745887838108,-2200.39221186,0.00035119,7]
[359275392,1745887838117,-2200.39221186,0.00035119,7]
[359275393,1745887838125,-2200.39221186,0.00035119,7]
[359275394,1745887838134,-2200.39221186,0.00035119,7]
[359275395,1745887838143,-2200.39221186,0.00035119,7]
[359275396,1745887838152,-2200.39221186,0.00035119,7]
[359275397,1745887838161,-2200.39221186,0.00035119,7]
[359275398,1745887838170,-2200.39221186,0.00035119,7]
[359275399,1745887838179,-402.5319517,0.0003512,2]
[359275400,1745887838189,-160.1,0.0003514,2]
[359275401,1745887838198,-14247.4297032,0.00035151,2]
[359275402,1745887838207,-160.1,0.0003519,2]
[359275403,1745887838216,-4403.72479338,0.000352,2]
[359275404,1745887838225,-40128.2663,0.000352,2]
[359275405,1745887838234,-189.37180716,0.0003522,2]
[359275406,1745887838243,-215.0738,0.0003522,2]
[359275407,1745887838252,-365.42376709,0.0003526,14]
[359275408,1745887838261,-14162.8013,0.000353,2]
[359275409,1745887838270,-308.2786,0.000353,2]
[359275410,1745887838279,-12473.0409,0.000353,2]
[359275412,1745887838288,-2500.0,0.000353,2]
[359275413,1745887838298,-4403.72479333,0.00035326,2]
[359275415,1745887838307,-341.62,0.00035346,2]
[359275433,1745887838481,-6858.81697107,0.00035362,2]
[359275435,1745887838491,-150.0,0.0003538,2]
[359275437,1745887838500,-160.1,0.0003539,2]
[359275439,1745887838509,-55433.9278,0.000354,2]
[359275441,1745887838519,-3366.8658,0.000354,2]
[359275443,1745887838528,-442.4641,0.000354,2]
[359275445,1745887838537,-372.91496516,0.000354,15]
[359275447,1745887838548,-6851.44642607,0.00035406,2]
[359275449,1745887838558,-4403.72479333,0.00035453,2]
[359275451,1745887838567,-69631.6669312,0.0003549,2]
[359275453,1745887838576,-152.87,0.0003549,2]
[359275455,1745887838585,-155.15523695,0.00035496,9]
[359275457,1745887838595,-152317.9119276,0.000355,3]
[359275459,1745887838604,-6851.44642599,0.0003551,2]
[359275461,1745887838613,-214.90806413,0.00035516,2]
[359275463,1745887838623,-155.15523695,0.00035516,9]
[359275465,1745887838632,-150.0,0.00035549,2]
[359275467,1745887838642,-34815.8334656,0.00035569,2]
[359275469,1745887838652,-4403.72479333,0.00035579,2]
[359275471,1745887838662,-279.86,0.00035595,2]
[359275473,1745887838673,-2000.0,0.00035595,2]
[359275475,1745887838682,-2000.0,0.00035595,2]
[359275477,1745887838691,-2000.0,0.00035595,2]
[359275479,1745887838701,-2000.0,0.00035595,2]
[359275481,1745887838710,-2000.0,0.00035595,2]
[359275483,1745887838720,-174079.167328,0.00035596,2]
[359275486,1745887838731,-413.77906887,0.00035596,2]
[359275488,1745887838741,-1037.59267704,0.000356,2]
[359275490,1745887838750,-348158.334656,0.00035606,2]
[359275492,1745887838760,-152.87,0.00035606,2]
[359275494,1745887838768,-6851.44642599,0.00035613,2]
[359275496,1745887838778,-2000.0,0.00035614,2]
[359275498,1745887838787,-300.0,0.00035615,10]
[359275500,1745887838796,-300.0,0.00035615,10]
[359275502,1745887838807,-2000.0,0.00035615,2]
[359275504,1745887838816,-155.0,0.00035616,5]
[359275506,1745887838825,-907.0,0.00035616,2]
[359275508,1745887838834,-470.0,0.00035616,6]
[359275510,1745887838844,-541.65038752,0.00035616,6]
[359275512,1745887838853,-470.0,0.00035616,6]
[359275514,1745887838863,-536.94466659,0.00035616,6]
[359275516,1745887838872,-470.0,0.00035616,6]
[359275518,1745887838881,-470.0,0.00035616,6]
[359275520,1745887838890,-470.0,0.00035616,6]
[359275522,1745887838899,-615.37472765,0.00035616,6]
[359275524,1745887838908,-470.0,0.00035616,6]
[359275526,1745887838919,-192.78508974,0.00035616,6]
[359275528,1745887838928,-470.0,0.00035616,6]
[359275530,1745887838939,-400.0,0.00035616,6]
[359275532,1745887838947,-470.0,0.00035616,6]
[359275534,1745887838957,-196.30564883,0.00035616,6]
[359275536,1745887838967,-470.0,0.00035616,6]
[359275538,1745887838976,-400.0,0.00035616,6]
[359275540,1745887838985,-470.0,0.00035616,6]
[359275542,1745887838994,-400.0,0.00035616,6]
[359275544,1745887839004,-400.0,0.00035616,6]
[359275546,1745887839013,-470.0,0.00035616,6]
[359275548,1745887839022,-470.0,0.00035616,6]
[359275550,1745887839031,-470.0,0.00035616,6]
[359275551,1745887839040,-470.0,0.00035616,6]
[359275553,1745887839050,-470.0,0.00035616,6]
[359275554,1745887839059,-488.28,0.00035616,6]
[359275555,1745887839068,-470.0,0.00035616,6]
[359275556,1745887839077,-470.0,0.00035616,6]
[359275557,1745887839087,-179.99590652,0.00035616,6]
[359275558,1745887839096,-470.0,0.00035616,6]
[359275559,1745887839106,-470.0,0.00035616,6]
[359275560,1745887839116,-470.0,0.00035616,6]
[359275561,1745887839126,-501.91471469,0.00035616,6]
[359275562,1745887839135,-789.06,0.00035616,6]
[359275563,1745887839144,-470.0,0.00035616,6]
[359275564,1745887839155,-470.0,0.00035616,6]
[359275565,1745887839164,-1000.0,0.00035616,6]
[359275566,1745887839174,-470.0,0.00035616,6]
[359275567,1745887839183,-470.0,0.00035616,6]
[359275568,1745887839193,-504.70218689,0.00035616,6]
[359275569,1745887839202,-470.0,0.00035616,6]
[359275570,1745887839212,-470.0,0.00035616,6]
[359275571,1745887839221,-400.0,0.00035616,6]
[359275572,1745887839231,-181.12776466,0.00035616,6]
[359275573,1745887839241,-523.11869084,0.00035616,6]
[359275574,1745887839251,-470.0,0.00035616,6]
[359275575,1745887839261,-470.0,0.00035616,6]
[359275576,1745887839272,-400.0,0.00035616,6]
[359275577,1745887839281,-470.0,0.00035616,6]
[359275578,1745887839291,-470.0,0.00035616,6]
[359275579,1745887839300,-598.81771363,0.00035616,6]
[359275580,1745887839311,-470.0,0.00035616,6]
[359275581,1745887839321,-470.0,0.00035616,6]
[359275582,1745887839331,-470.0,0.00035616,6]
[359275583,1745887839340,-470.0,0.00035616,6]
[359275584,1745887839350,-470.0,0.00035616,6]
[359275585,1745887839359,-470.0,0.00035616,6]
[359275586,1745887839369,-470.0,0.00035616,6]
[359275587,1745887839378,-537.15989316,0.00035616,6]
[359275588,1745887839387,-470.0,0.00035616,6]
[359275589,1745887839397,-470.0,0.00035616,6]
[359275590,1745887839406,-470.0,0.00035616,6]
[359275591,1745887839415,-597.96092439,0.00035616,6]
[359275592,1745887839424,-470.0,0.00035616,6]
[359275593,1745887839433,-267.86219444,0.00035616,6]
[359275594,1745887839443,-470.0,0.00035616,6]
[359275595,1745887839452,-470.0,0.00035616,6]
[359275596,1745887839461,-476.37,0.00035616,6]
[359275597,1745887839470,-470.0,0.00035616,6]
[359275598,1745887839479,-470.0,0.00035616,6]
[359275600,1745887839488,-470.0,0.00035616,6]
[359275601,1745887839498,-470.0,0.00035616,6]
[359275602,1745887839507,-470.0,0.00035616,6]
[359275603,1745887839516,-470.0,0.00035616,6]
[359275604,1745887839525,-463.67424145,0.00035616,6]
[359275605,1745887839534,-470.0,0.00035616,6]
[359275606,1745887839543,-470.0,0.00035616,6]
[359275607,1745887839553,-470.0,0.00035616,6]
[359275608,1745887839562,-400.0,0.00035616,6]
[359275609,1745887839571,-265.98418831,0.00035616,6]
[359275610,1745887839580,-470.0,0.00035616,6]
[359275611,1745887839589,-470.0,0.00035616,6]
[359275612,1745887839598,-470.0,0.00035616,6]
[359275613,1745887839608,-400.0,0.00035616,6]
[359275614,1745887839616,-470.0,0.00035616,6]
[359275615,1745887839626,-470.0,0.00035616,6]
[359275616,1745887839636,-470.0,0.00035616,6]
[359275617,1745887839645,-221.11005959,0.00035616,6]
[359275618,1745887839654,-321.32684756,0.00035616,6]
[359275619,1745887839663,-265.32691573,0.00035616,6]
[359275620,1745887839673,-470.0,0.00035616,6]
[359275621,1745887839683,-470.0,0.00035616,6]
[359275622,1745887839692,-470.0,0.00035616,6]
[359275623,1745887839701,-400.0,0.00035616,6]
[359275624,1745887839710,-470.0,0.00035616,6]
[359275625,1745887839720,-470.0,0.00035616,6]
[359275626,1745887839731,-470.0,0.00035616,6]
[359275627,1745887839742,-275.10454866,0.00035616,6]
[359275628,1745887839752,-470.0,0.00035616,6]
[359275629,1745887839763,-470.0,0.00035616,6]
[359275630,1745887839773,-470.0,0.00035616,6]
[359275631,1745887839783,-203.5320357,0.00035616,6]
[359275632,1745887839792,-470.0,0.00035616,6]
[359275633,1745887839802,-470.0,0.00035616,6]
[359275634,1745887839812,-470.0,0.00035616,6]
[359275635,1745887839821,-470.0,0.00035616,6]
[359275636,1745887839831,-470.0,0.00035616,6]
[359275637,1745887839841,-470.0,0.00035616,6]
[359275638,1745887839852,-470.0,0.00035616,6]
[359275639,1745887839862,-328.72403829,0.00035616,6]
[359275640,1745887839872,-470.0,0.00035616,6]
[359275641,1745887839881,-470.0,0.00035616,6]
[359275642,1745887839891,-400.0,0.00035616,6]
[359275643,1745887839900,-470.0,0.00035616,6]
[359275644,1745887839909,-470.0,0.00035616,6]
[359275645,1745887839919,-476.23,0.00035616,6]
[359275646,1745887839928,-470.0,0.00035616,6]
[359275647,1745887839938,-470.0,0.00035616,6]
[359275648,1745887839947,-470.0,0.00035616,6]
[359275649,1745887839957,-470.0,0.00035616,6]
[359275650,1745887839967,-470.0,0.00035616,6]
[359275651,1745887839977,-470.0,0.00035616,6]
[359275652,1745887839986,-470.0,0.00035616,6]
[359275653,1745887839996,-470.0,0.00035616,6]
[359275654,1745887840005,-167.800909,0.00035616,6]
[359275655,1745887840014,-400.0,0.00035616,6]
[359275656,1745887840023,-741.277926,0.00035616,6]
[359275657,1745887840032,-470.0,0.00035616,6]
[359275658,1745887840041,-167.570516,0.00035616,6]
[359275659,1745887840051,-470.0,0.00035616,6]
[359275660,1745887840062,-470.0,0.00035616,6]
[359275661,1745887840072,-165.25155,0.00035616,6]
[359275662,1745887840083,-470.0,0.00035616,6]
[359275663,1745887840093,-470.0,0.00035616,6]
[359275664,1745887840102,-470.0,0.00035616,6]
[359275665,1745887840111,-4827.427462,0.00035616,6]
[359275666,1745887840121,-470.0,0.00035616,6]
[359275667,1745887840130,-470.0,0.00035616,6]
[359275668,1745887840140,-470.0,0.00035616,6]
[359275669,1745887840149,-1167.398171,0.00035616,6]
[359275670,1745887840159,-470.0,0.00035616,6]
[359275671,1745887840168,-470.0,0.00035616,6]
[359275672,1745887840178,-470.0,0.00035616,6]
[359275673,1745887840188,-470.0,0.00035616,6]
[359275674,1745887840198,-470.0,0.00035616,6]
[359275675,1745887840207,-470.0,0.00035616,6]
[359275676,1745887840217,-400.0,0.00035616,6]
[359275678,1745887840226,-606.42,0.00035616,6]
[359275679,1745887840236,-470.0,0.00035616,6]
[359275681,1745887840245,-470.0,0.00035616,6]
[359275683,1745887840255,-1583.73,0.00035616,6]
[359275684,1745887840264,-470.0,0.00035616,6]
[359275685,1745887840274,-470.0,0.00035616,6]
[359275686,1745887840283,-470.0,0.00035616,6]
[359275687,1745887840293,-542.67,0.00035616,6]
[359275688,1745887840302,-470.0,0.00035616,6]
[359275689,1745887840311,-556.66,0.00035616,6]
[359275690,1745887840321,-470.0,0.00035616,6]
[359275691,1745887840333,-470.0,0.00035616,6]
[359275693,1745887840342,-400.0,0.00035616,6]
[359275694,1745887840351,-470.0,0.00035616,6]
[359275695,1745887840361,-470.0,0.00035616,6]
[359275696,1745887840371,-470.0,0.00035616,6]
[359275697,1745887840380,-500.0,0.00035616,6]
[359275698,1745887840390,-470.0,0.00035616,6]
[359275699,1745887840399,-470.0,0.00035616,6]
[359275700,1745887840411,-729.38,0.00035616,6]
[359275701,1745887840423,-718.99,0.00035616,6]
[359275702,1745887840446,-470.0,0.00035616,6]
[359275703,1745887840456,-1213.9,0.00035616,6]
[359275704,1745887840466,-470.0,0.00035616,6]
[359275705,1745887840476,-470.0,0.00035616,6]
[359275706,1745887840485,-470.0,0.00035616,2]
[359275707,1745887840495,-470.0,0.00035616,6]
[359275708,1745887840505,-470.0,0.00035616,6]
[359275709,1745887840515,-851.55,0.00035616,6]
[359275710,1745887840524,-470.0,0.00035616,6]
[359275711,1745887840534,-470.0,0.00035616,6]
[359275712,1745887840543,-470.0,0.00035616,6]
[359275713,1745887840552,-470.0,0.00035616,6]
[359275714,1745887840562,-808.97,0.00035616,6]
[359275715,1745887840571,-470.0,0.00035616,6]
[359275716,1745887840580,-470.0,0.00035616,6]
[359275717,1745887840590,-470.0,0.00035616,6]
[359275718,1745887840599,-470.0,0.00035616,6]
[359275719,1745887840609,-470.0,0.00035616,6]
[359275720,1745887840619,-608.31389006,0.00035616,6]
[359275721,1745887840628,-470.0,0.00035616,6]
[359275722,1745887840637,-470.0,0.00035616,6]
[359275723,1745887840647,-470.0,0.00035616,6]
[359275724,1745887840656,-564.69,0.00035616,6]
[359275725,1745887840665,-470.0,0.00035616,6]
[359275726,1745887840675,-470.0,0.00035616,6]
[359275727,1745887840684,-470.0,0.00035616,6]
[359275728,1745887840694,-470.0,0.00035616,6]
[359275729,1745887840703,-470.0,0.00035616,6]
[359275730,1745887840713,-470.0,0.00035616,6]
[359275731,1745887840863,-643.71,0.00035616,6]
[359275732,1745887840873,-470.0,0.00035616,6]
[359275733,1745887840883,-470.0,0.00035616,6]
[359275734,1745887840892,-470.0,0.00035616,6]
[359275735,1745887840902,-470.0,0.00035616,6]
[359275736,1745887840911,-470.0,0.00035616,6]
[359275737,1745887840921,-470.0,0.00035616,6]
[359275738,1745887840930,-523.89,0.00035616,6]
[359275739,1745887840940,-1219.97,0.00035616,6]
[359275740,1745887840950,-581.14,0.00035616,6]
[359275741,1745887840961,-495.32,0.00035616,6]
[359275742,1745887840971,-470.0,0.00035616,6]
[359275743,1745887840981,-552.23,0.00035616,6]
[359275744,1745887840991,-470.0,0.00035616,6]
[359275745,1745887841000,-470.0,0.00035616,6]
[359275746,1745887841009,-470.0,0.00035616,6]
[359275747,1745887841019,-470.0,0.00035616,6]
[359275748,1745887841028,-470.0,0.00035616,6]
[359275749,1745887841037,-470.0,0.00035616,6]
[359275750,1745887841047,-470.0,0.00035616,6]
[359275751,1745887841056,-517.23961955,0.00035616,6]
[359275752,1745887841065,-497.72,0.00035616,6]
[359275753,1745887841075,-470.0,0.00035616,6]
[359275754,1745887841084,-470.0,0.00035616,6]
[359275755,1745887841094,-493.23,0.00035616,6]
[359275756,1745887841103,-470.0,0.00035616,6]
[359275757,1745887841112,-470.0,0.00035616,6]
[359275758,1745887841121,-579.23,0.00035616,6]
[359275759,1745887841130,-470.0,0.00035616,6]
[359275760,1745887841139,-470.0,0.00035616,6]
[359275761,1745887841149,-152.55773919,0.00035616,6]
[359275762,1745887841158,-470.0,0.00035616,6]
[359275763,1745887841168,-470.0,0.00035616,6]
[359275764,1745887841178,-400.0,0.00035616,6]
[359275765,1745887841189,-470.0,0.00035616,6]
[359275766,1745887841199,-400.0,0.00035616,6]
[359275767,1745887841208,-470.0,0.00035616,6]
[359275768,1745887841218,-470.0,0.00035616,6]
[359275769,1745887841227,-479.38,0.00035616,6]
[359275770,1745887841237,-470.0,0.00035616,6]
[359275771,1745887841247,-470.0,0.00035616,6]
[359275772,1745887841256,-470.0,0.00035616,6]
[359275773,1745887841266,-470.0,0.00035616,6]
[359275774,1745887841275,-537.91896051,0.00035616,6]
[359275775,1745887841285,-669.99,0.00035616,6]
[359275776,1745887841296,-470.0,0.00035616,6]
[359275777,1745887841305,-300.0,0.00035616,6]
[359275778,1745887841316,-628.94,0.00035616,6]
[359275779,1745887841325,-470.0,0.00035616,6]
[359275780,1745887841335,-470.0,0.00035616,6]
[359275781,1745887841345,-470.0,0.00035616,6]
[359275782,1745887841355,-772.96,0.00035616,6]
[359275783,1745887841365,-470.0,0.00035616,6]
[359275784,1745887841375,-470.0,0.00035616,6]
[359275785,1745887841385,-470.0,0.00035616,6]
[359275786,1745887841395,-470.0,0.00035616,6]
[359275787,1745887841405,-470.0,0.00035616,6]
[359275788,1745887841414,-615.52,0.00035616,6]
[359275789,1745887841424,-470.0,0.00035616,6]
[359275790,1745887841435,-470.0,0.00035616,6]
[359275791,1745887841445,-728.5,0.00035616,6]
[359275792,1745887841454,-500.0,0.00035616,6]
[359275793,1745887841463,-500.0,0.00035616,6]
[359275794,1745887841473,-500.0,0.00035616,6]
[359275795,1745887841482,-500.0,0.00035616,6]
[359275796,1745887841492,-500.0,0.00035616,6]
[359275797,1745887841501,-500.0,0.00035616,6]
[359275798,1745887841511,-500.0,0.00035616,6]
[359275799,1745887841520,-500.0,0.00035616,6]
[359275800,1745887841530,-500.0,0.00035616,6]
[359275801,1745887841540,-470.0,0.00035616,6]
[359275802,1745887841549,-575.19,0.00035616,6]
[359275803,1745887841560,-480.02,0.00035616,6]
[359275804,1745887841569,-470.0,0.00035616,6]
[359275805,1745887841578,-470.0,0.00035616,6]
[359275806,1745887841588,-470.0,0.00035616,6]
[359275807,1745887841598,-581.36,0.00035616,6]
[359275808,1745887841611,-470.0,0.00035616,6]
[359275809,1745887841621,-470.0,0.00035616,6]
[359275810,1745887841630,-470.0,0.00035616,6]
[359275811,1745887841639,-470.0,0.00035616,6]
[359275812,1745887841649,-470.0,0.00035616,6]
[359275813,1745887841659,-470.0,0.00035616,6]
[359275814,1745887841668,-473.04,0.00035616,6]
[359275815,1745887841678,-672.78,0.00035616,6]
[359275816,1745887841687,-611.91,0.00035616,6]
[359275817,1745887841697,-637.07,0.00035616,6]
[359275818,1745887841708,-400.0,0.00035616,6]
[359275819,1745887841717,-676.8,0.00035616,6]
[359275820,1745887841727,-470.0,0.00035616,6]
[359275821,1745887841736,-499.44,0.00035616,6]
[359275822,1745887841745,-542.32,0.00035616,6]
[359275823,1745887841755,-485.79,0.00035616,6]
[359275824,1745887841764,-470.0,0.00035616,6]
[359275825,1745887841773,-400.0,0.00035616,6]
[359275826,1745887841782,-470.0,0.00035616,6]
[359275827,1745887841791,-470.0,0.00035616,6]
[359275828,1745887841800,-470.0,0.00035616,6]
[359275829,1745887841809,-470.0,0.00035616,6]
[359275830,1745887841818,-470.0,0.00035616,6]
[359275831,1745887841827,-470.0,0.00035616,6]
[359275832,1745887841836,-470.0,0.00035616,6]
[359275833,1745887841845,-470.0,0.00035616,6]
[359275834,1745887841854,-509.22,0.00035616,6]
[359275835,1745887841863,-557.87,0.00035616,6]
[359275836,1745887841872,-470.0,0.00035616,6]
[359275837,1745887841881,-470.0,0.00035616,6]
[359275838,1745887841890,-470.0,0.00035616,6]
[359275839,1745887841899,-470.0,0.00035616,6]
[359275840,1745887841909,-500.0,0.00035616,6]
[359275841,1745887841919,-573.26,0.00035616,6]
[359275842,1745887841928,-470.0,0.00035616,6]
[359275843,1745887841937,-400.0,0.00035616,6]
[359275844,1745887841946,-470.0,0.00035616,6]
[359275845,1745887841956,-470.0,0.00035616,6]
[359275846,1745887841965,-470.0,0.00035616,6]
[359275847,1745887841975,-668.05,0.00035616,6]
[359275848,1745887841984,-470.0,0.00035616,6]
[359275849,1745887841993,-470.0,0.00035616,6]
[359275850,1745887842002,-476.29,0.00035616,6]
[359275851,1745887842012,-609.92,0.00035616,6]
[359275852,1745887842022,-470.0,0.00035616,6]
[359275853,1745887842031,-470.0,0.00035616,6]
[359275854,1745887842041,-470.0,0.00035616,6]
[359275855,1745887842050,-470.0,0.00035616,6]
[359275856,1745887842059,-470.0,0.00035616,6]
[359275857,1745887842068,-470.0,0.00035616,6]
[359275858,1745887842078,-215.28252671,0.00035616,6]
[359275859,1745887842087,-470.0,0.00035616,6]
[359275860,1745887842096,-470.0,0.00035616,6]
[359275861,1745887842105,-2400.38,0.00035616,6]
[359275862,1745887842114,-711.28,0.00035616,6]
[359275863,1745887842123,-470.0,0.00035616,6]
[359275864,1745887842133,-470.0,0.00035616,6]
[359275865,1745887842142,-653.4,0.00035616,6]
[359275866,1745887842151,-470.0,0.00035616,6]
[359275867,1745887842161,-470.0,0.00035616,6]
[359275868,1745887842171,-470.0,0.00035616,6]
[359275869,1745887842180,-470.0,0.00035616,6]
[359275870,1745887842189,-470.0,0.00035616,6]
[359275871,1745887842199,-150.01609851,0.00035616,6]
[359275872,1745887842208,-470.0,0.00035616,6]
[359275873,1745887842218,-470.0,0.00035616,6]
[359275874,1745887842227,-470.0,0.00035616,6]
[359275875,1745887842237,-470.0,0.00035616,6]
[359275876,1745887842246,-981.28,0.00035616,6]
[359275877,1745887842256,-302.95333337,0.00035616,6]
[359275878,1745887842265,-493.41,0.00035616,6]
[359275879,1745887842275,-470.0,0.00035616,6]
[359275880,1745887842284,-470.0,0.00035616,6]
[359275881,1745887842293,-470.0,0.00035616,6]
[359275882,1745887842303,-470.0,0.00035616,6]
[359275883,1745887842313,-470.0,0.00035616,6]
[359275884,1745887842322,-997.95,0.00035616,6]
[359275885,1745887842334,-692.77,0.00035616,6]
[359275886,1745887842347,-470.0,0.00035616,6]
[359275887,1745887842357,-736.35,0.00035616,6]
[359275888,1745887842366,-470.0,0.00035616,6]
[359275889,1745887842377,-475.58,0.00035616,6]
[359275890,1745887842387,-470.0,0.00035616,6]
[359275891,1745887842396,-470.0,0.00035616,6]
[359275892,1745887842406,-470.0,0.00035616,6]
[359275894,1745887842416,-501.9,0.00035616,6]